bitfinex-derivatives/quotes_ETHF0:USTF0_20250830
["timestamp","ask_amount","ask_price","bid_price","bid_amount"]
[1756573714401,0.4924,4369.5,4369.4,36.1558]
[1756573714694,0.4924,4369.5,4369.4,33.181]
[1756573715789,3.2078,4370.2,4369.4,33.4682]
[1756573715994,0.4924,4370.1,4370.0,0.201]
[1756573716195,0.4924,4370.1,4370.0,0.4882]
[1756573716400,0.4924,4370.1,4370.0,0.201]
[1756573716902,0.4924,4370.1,4369.8,0.233]
[1756573717205,0.1967,4369.9,4369.8,0.7212]
[1756573717393,0.4847,4369.9,4369.8,0.7212]
[1756573717890,0.2032,4369.5,4369.4,32.948]
[1756573718098,0.4912,4369.5,4369.4,33.4789]
[1756573722097,0.288,4370.1,4369.4,33.181]
[1756573722297,0.288,4370.1,4369.5,0.2979]
[1756573722598,0.288,4370.1,4369.6,0.232]
[1756573723203,0.2032,4369.7,4369.4,32.948]
[1756573723397,0.4912,4369.5,4369.4,32.948]
[1756573723598,3.2078,4369.8,4368.8,3.2078]
[1756573723599,0.2032,4368.9,4368.8,3.2078]
[1756573723801,0.288,4369.7,4368.9,0.2979]
[1756573724001,0.4912,4369.7,4369.6,0.5005]
[1756573724195,0.4912,4369.7,4369.6,0.7335]
[1756573725305,0.288,4370.3,4369.6,0.4356]
[1756573725505,0.288,4370.3,4369.7,0.2979]
[1756573725903,0.2032,4369.8,4369.7,0.5005]
[1756573726101,0.4912,4369.8,4369.7,0.5005]
[1756573730810,0.288,4370.8,4369.8,0.2979]
[1756573731010,0.51681,4370.8,4369.9,0.232]
[1756573731210,0.4912,4370.0,4369.9,0.7325]
[1756573731803,3.2078,4370.9,4370.0,0.2979]
[1756573731804,0.288,4370.8,4370.0,0.2979]
[1756573732405,0.4912,4370.8,4370.7,0.5005]
[1756573734007,3.2078,4371.4,4370.7,0.2026]
[1756573734312,3.2078,4371.4,4370.8,0.7325]
[1756573734313,0.4912,4370.9,4370.8,0.7325]
[1756573735712,0.288,4370.8,4370.5,0.2979]
[1756573736015,0.4912,4370.2,4370.1,0.5005]
[1756573736205,0.2288,4371.3,4370.1,0.7325]
[1756573736410,0.4912,4370.3,4370.2,0.5005]
[1756573739209,0.288,4371.3,4370.3,0.2979]
[1756573739416,0.51679,4371.3,4370.3,0.2979]
[1756573740109,0.4912,4370.2,4370.1,0.2026]
[1756573740511,0.2032,4369.6,4369.5,32.961]
[1756573740818,0.4912,4369.6,4369.5,33.193]
[1756573742320,0.4912,4369.6,4369.5,33.4909]
[1756573742508,0.4912,4369.6,4369.5,32.961]
[1756573742714,0.288,4369.4,4369.3,3.2078]
[1756573742914,0.4912,4369.4,4369.3,3.4398]
[1756573743115,0.4912,4369.4,4369.3,3.9403]
[1756573743720,0.4912,4369.4,4369.3,0.2026]
[1756573743914,0.4912,4369.4,4368.8,3.2078]
[1756573743915,0.4912,4369.4,4369.0,0.2979]
[1756573744220,0.4912,4369.4,4369.2,0.2979]
[1756573744418,0.4912,4369.4,4369.1,0.232]
[1756573744419,0.2032,4368.9,4368.8,3.4104]
[1756573744613,3.2078,4369.8,4368.8,3.6424]
[1756573745009,0.288,4369.7,4368.9,0.2979]
[1756573745317,0.4912,4369.0,4368.9,0.5005]
[1756573745617,0.4912,4368.9,4368.8,3.2078]
[1756573745820,0.4912,4368.9,4368.8,3.4398]
[1756573746820,0.4912,4368.9,4368.8,3.9403]
[1756573747521,0.4912,4368.9,4368.8,3.7083]
[1756573747819,0.4912,4368.9,4368.8,3.9403]
[1756573748415,0.2919,4369.7,4368.8,3.6424]
[1756573748608,0.22887,4369.7,4368.9,0.2829]
[1756573748819,0.4961,4369.0,4368.9,0.1902]
[1756573749621,0.2042,4368.4,4368.3,3.398]
[1756573749821,0.4961,4368.4,4368.3,3.9129]
[1756573751219,0.4961,4368.4,4367.9,0.2829]
[1756573751416,0.2042,4368.1,4368.0,0.232]
[1756573751612,0.4961,4368.1,4368.0,0.232]
[1756573752123,0.4961,4367.5,4366.9,4.8471459]
[1756573752321,0.1144,4367.4,4367.0,0.232]
[1756573752522,0.2042,4367.1,4367.0,0.4222]
[1756573752723,0.4961,4367.1,4367.0,0.4222]
[1756573753114,0.4961,4367.1,4367.0,0.7051]
[1756573753815,0.4961,4367.1,4367.0,0.4731]
[1756573754020,0.4961,4367.1,4367.0,0.7051]
[1756573754422,0.4961,4367.1,4367.0,0.4731]
[1756573754623,0.4961,4366.8,4366.7,33.2469]
[1756573754915,0.4961,4367.3,4366.8,0.2829]
[1756573755115,0.1144,4367.4,4366.7,33.196]
[1756573755319,0.4961,4366.9,4366.8,0.7051]
[1756573755518,0.4961,4366.9,4366.5,0.2829]
[1756573755718,0.2042,4366.9,4366.6,0.5149]
[1756573755918,0.4961,4366.8,4366.7,0.4731]
[1756573756312,0.4961,4366.8,4366.7,0.1902]
[1756573756524,0.4961,4366.8,4366.7,0.4731]
[1756573758121,3.2078,4367.3,4366.7,0.4731]
[1756573758315,0.4961,4367.2,4367.1,0.1902]
[1756573758516,0.4961,4367.2,4366.8,0.2829]
[1756573758716,0.4961,4367.2,4366.6,0.232]
[1756573759123,0.4961,4366.7,4366.6,0.7051]
[1756573759512,0.4961,4366.7,4366.6,0.4731]
[1756573759721,0.4961,4366.7,4366.6,0.7051]
[1756573759917,0.4961,4366.7,4366.6,0.4222]
[1756573760122,0.4961,4366.7,4366.6,0.1902]
[1756573760318,0.4961,4366.7,4366.6,0.4222]
[1756573760521,0.4961,4366.7,4366.6,0.7051]
[1756573764429,3.2078,4367.3,4366.6,0.7051]
[1756573764630,3.2078,4367.3,4366.7,0.2829]
[1756573764833,0.2919,4367.2,4366.6,0.232]
[1756573765034,0.2919,4367.2,4366.7,0.2829]
[1756573765328,0.4961,4367.2,4367.1,0.4731]
[1756573770829,0.4961,4367.2,4366.9,0.2829]
[1756573776230,0.4961,4367.2,4367.1,0.1902]
[1756573776435,0.4961,4367.2,4367.1,0.4731]
[1756573777031,3.2078,4367.3,4367.2,0.4731]
[1756573777633,3.7141,4367.3,4367.2,0.4731]
[1756573778233,0.5063,4367.3,4367.2,0.4731]
[1756573779836,0.5063,4367.3,4367.2,0.7051]
[1756573780836,0.2042,4367.3,4366.9,0.285]
[1756573781041,0.3021,4367.2,4367.0,0.232]
[1756573781239,0.5069,4367.1,4367.0,0.7077]
[1756573781438,0.3021,4367.1,4367.0,0.7077]
[1756573782431,0.5069,4367.1,4367.0,0.7077]
[1756573785443,0.3021,4367.0,4366.7,0.285]
[1756573785637,0.5069,4366.5,4366.4,0.285]
[1756573786046,3.2078,4366.7,4365.9,1.6393459]
[1756573786239,0.5069,4366.0,4365.9,0.4757]
[1756573787340,0.5069,4366.0,4365.9,0.1907]
[1756573787549,0.5069,4366.0,4365.9,0.232]
[1756573788249,0.3021,4365.9,4365.5,1.6393459]
[1756573788450,3.2078,4366.7,4365.5,1.6393459]
[1756573788451,0.2048,4366.0,4365.9,0.232]
[1756573788652,0.5069,4366.0,4365.9,0.232]
[1756573789648,0.2048,4365.8,4365.7,0.7077]
[1756573789849,0.5069,4365.8,4365.7,0.7077]
[1756573792555,0.1145,4366.0,4365.7,0.7077]
[1756573792755,0.5069,4365.8,4365.7,0.4227]
[1756573793352,0.5069,4365.8,4365.7,0.7077]
[1756573799160,0.1145,4366.0,4365.7,0.7077]
[1756573799458,0.4166,4366.0,4365.9,0.1907]
[1756573799658,0.6214,4366.0,4365.9,0.4757]
[1756573801063,0.4166,4366.0,4365.9,0.4757]
[1756573801357,0.1145,4366.0,4365.9,0.4757]
[1756573801556,0.1145,4366.0,4365.9,4.70475]
[1756573802160,3.2078,4366.7,4366.0,0.2015]
[1756573802354,0.3021,4366.6,4366.1,1.87499338]
[1756573802659,3.2078,4366.7,4366.6,0.3922]
[1756573802957,3.2078,4366.7,4366.6,0.6242]
[1756573803553,3.5099,4366.7,4366.6,0.6242]
[1756573803954,3.7147,4366.7,4366.6,0.6242]
[1756573804763,0.5069,4366.7,4366.6,0.6242]
[1756573805061,3.2078,4367.2,4366.7,0.2015]
[1756573805261,0.5069,4367.1,4367.0,0.1907]
[1756573805461,0.5069,4367.1,4367.0,0.6242]
[1756573810464,0.5069,4367.1,4367.0,0.4227]
[1756573810962,0.5069,4367.1,4367.0,0.6233]
[1756573815458,0.3005,4367.6,4367.1,0.2006]
[1756573815664,0.5029,4367.6,4367.5,0.3908]
[1756573815862,0.5029,4367.6,4367.5,0.6228]
[1756573817260,3.2078,4368.2,4367.6,0.2006]
[1756573817465,3.2078,4368.2,4368.0,0.3908]
[1756573817466,0.5029,4368.1,4368.0,0.3908]
[1756573817662,0.5029,4368.1,4368.0,0.6228]
[1756573818560,0.3005,4368.1,4368.0,0.6228]
[1756573818763,3.5083,4368.2,4368.0,0.4222]
[1756573818959,3.7107,4368.2,4368.1,0.3908]
[1756573820569,3.5083,4368.2,4368.1,0.3908]
[1756573822163,3.2078,4368.2,4368.1,0.3908]
[1756573822559,3.5083,4368.2,4368.1,0.3908]
[1756573823871,0.2024,4368.7,4368.6,0.1902]
[1756573824068,0.5029,4368.7,4368.6,0.6228]
[1756573826173,0.2024,4368.8,4368.7,0.3908]
[1756573826365,0.5029,4368.8,4368.7,0.3908]
[1756573827164,0.3005,4368.8,4368.7,0.3908]
[1756573827561,0.5029,4368.8,4368.7,0.3908]
[1756573827765,0.5029,4368.8,4368.7,0.232]
[1756573828566,0.2024,4368.8,4368.3,3.2078]
[1756573828770,0.5029,4368.8,4368.7,0.232]
[1756573832470,0.3005,4368.7,4368.3,3.2078]
[1756573832771,0.5029,4368.4,4368.3,3.2078]
[1756573833676,0.5029,4368.4,4368.2,0.232]
[1756573834871,0.5029,4368.4,4368.3,0.3916]
[1756573835271,0.5029,4368.4,4368.3,3.5994]
[1756573835476,0.5029,4368.4,4368.3,0.3916]
[1756573836980,0.5029,4368.4,4368.3,3.5994]
[1756573837984,0.5029,4368.4,4368.3,0.3916]
[1756573838578,0.5029,4368.4,4368.3,3.5994]
[1756573839680,3.2078,4369.5,4368.4,0.2014]
[1756573839981,0.2877,4369.4,4368.4,0.2014]
[1756573841784,0.4887,4368.5,4368.4,0.3945]
[1756573843284,3.2078,4369.5,4368.4,0.3945]
[1756573843285,0.2877,4368.9,4368.4,0.1931]
[1756573843482,0.4887,4368.9,4368.8,0.3945]
[1756573843786,0.4887,4368.9,4368.8,0.4241]
[1756573844584,0.4887,4368.9,4368.3,3.2078]
[1756573844785,0.4887,4368.9,4368.8,0.231]
[1756573850890,0.201,4368.9,4368.4,1.64299338]
[1756573851094,0.201,4368.6,4368.5,0.231]
[1756573851290,0.4887,4368.6,4368.5,1.87399338]
[1756573851590,0.4887,4368.6,4368.5,2.26849338]
[1756573852092,0.4887,4368.6,4368.5,2.03749338]
[1756573852292,0.4887,4368.6,4368.5,2.26849338]
[1756573852789,0.4887,4368.6,4368.5,2.03749338]
[1756573852991,0.4887,4368.6,4368.5,2.26849338]
[1756573853292,0.4887,4368.6,4368.5,2.03749338]
[1756573853492,0.4887,4368.6,4368.5,2.26849338]
[1756573854090,0.4887,4368.6,4368.5,0.6255]
[1756573855099,0.2877,4368.6,4368.5,0.6255]
[1756573855289,3.2078,4369.5,4368.6,0.2014]
[1756573855587,1.06563796,4369.4,4368.6,0.2014]
[1756573855885,0.2877,4369.2,4368.6,0.2014]
[1756573857488,0.4887,4368.7,4368.6,0.3945]
[1756573862397,0.2877,4369.4,4368.7,0.2014]
[1756573862697,0.4887,4369.4,4369.3,0.3945]
[1756573862893,0.4887,4369.4,4369.3,0.6255]
[1756573864103,0.2877,4369.4,4369.3,0.6255]
[1756573864401,3.2078,4370.0,4369.4,0.2014]
[1756573864600,0.2877,4369.9,4369.4,0.2014]
[1756573864797,0.201,4369.2,4369.1,1.64387099]
[1756573864996,0.4887,4369.2,4369.1,0.231]
[1756573865294,0.4887,4369.2,4369.1,0.6255]
[1756573865501,0.4887,4369.2,4369.1,2.26937099]
[1756573866295,0.4887,4369.2,4369.1,0.6255]
[1756573866698,0.4887,4369.2,4369.1,0.231]
[1756573868196,0.4887,4369.2,4368.9,1.64387099]
[1756573868197,0.4758,4369.0,4368.9,2.03667099]
[1756573868399,0.4758,4369.0,4368.9,2.26767099]
[1756573869310,0.2886,4370.4,4368.9,2.06637099]
[1756573869494,0.83702232,4370.3,4369.0,0.2013]
[1756573869693,0.4758,4369.1,4369.0,0.3928]
[1756573869898,0.4758,4369.1,4369.0,0.6238]
[1756573870206,0.2886,4369.1,4369.0,0.6238]
[1756573870398,3.2078,4370.5,4369.1,0.2013]
[1756573870598,0.2886,4370.3,4369.1,0.2013]
[1756573870798,0.2886,4370.1,4369.1,0.2013]
[1756573871004,0.4758,4369.2,4369.1,0.3928]
[1756573871902,0.4758,4369.2,4369.1,0.1915]
[1756573872100,0.4758,4369.2,4369.1,0.3928]
[1756573876306,0.4758,4369.1,4369.0,3.2078]
[1756573876607,0.4758,4369.1,4369.0,3.4388]
[1756573876902,3.2078,4370.5,4369.0,5.47547099]
[1756573877209,0.4758,4369.2,4369.1,0.3928]
[1756573885307,3.2078,4370.5,4369.2,0.2013]
[1756573885308,0.2886,4370.4,4369.2,0.2013]
[1756573885507,0.1872,4369.7,4369.6,0.3928]
[1756573885713,0.4758,4369.7,4369.6,0.4225]
[1756573886406,0.4758,4369.7,4369.6,0.6238]
[1756573890017,0.4758,4369.7,4369.6,2.26767099]
[1756573890715,0.2886,4369.7,4369.6,2.26767099]
[1756573892518,0.4758,4369.7,4369.6,2.26767099]
[1756573895922,0.4758,4369.7,4369.6,2.03667099]
[1756573896121,0.4758,4369.7,4369.6,2.06637099]
[1756573896315,0.4758,4369.7,4369.6,0.4225]
[1756573897125,0.2906,4369.6,4369.5,4.85167099]
[1756573897420,0.4808,4369.6,4369.5,2.26857099]
[1756573898610,0.4808,4369.6,4369.5,2.26454565]
[1756573899022,0.4808,4369.6,4369.5,0.6247]
[1756573899220,0.4808,4369.6,4369.5,2.26454724]
[1756573901124,0.2906,4369.6,4369.5,2.26454724]
[1756573901326,0.2906,4369.6,4369.5,3.8325]
[1756573901524,3.2078,4371.0,4369.5,3.8325]
[1756573901724,0.7770966,4370.9,4369.7,0.2013]
[1756573901928,0.1902,4369.9,4369.8,0.4234]
[1756573902119,0.2906,4370.9,4369.9,0.2013]
[1756573902320,0.2906,4370.7,4370.1,0.2013]
[1756573902622,0.4808,4370.3,4370.2,0.6247]
[1756573912819,0.2906,4370.9,4370.3,0.2013]
[1756573913028,0.1902,4370.6,4370.5,0.3937]
[1756573913229,0.4808,4370.6,4370.5,0.6247]
[1756573919144,0.2906,4370.6,4370.5,0.6247]
[1756573919347,0.4808,4370.6,4370.5,0.6247]
[1756573919644,0.4808,4370.6,4370.5,3.8325]
[1756573924342,0.4808,4370.6,4370.5,0.6247]
[1756573925143,0.4808,4370.4,4370.2,1.63980318]
[1756573925443,0.4808,4370.4,4370.0,3.4091]
[1756573925444,0.4808,4370.4,4370.3,0.231]
[1756573926145,0.1902,4370.4,4370.0,3.4091]
[1756573926341,0.4808,4370.1,4370.0,3.4091]
[1756573926847,0.4808,4370.1,4370.0,3.4388]
[1756573927047,0.4808,4370.1,4370.0,3.8325]
[1756573928139,0.4808,4370.1,4370.0,3.2078]
[1756573928340,0.4996,4370.1,4370.0,0.231]
[1756573928934,3.2078,4371.0,4370.0,0.6398]
[1756573929136,0.3094,4370.8,4370.1,0.2012]
[1756573930743,0.515,4370.8,4370.7,0.4088]
[1756573930949,0.515,4370.8,4370.6,0.231]
[1756573932849,0.515,4370.8,4370.7,0.4088]
[1756573933053,0.515,4370.8,4370.7,0.2076]
[1756573933247,0.515,4370.8,4370.7,0.4088]
[1756573934044,0.515,4370.8,4370.7,0.2012]
[1756573935654,0.515,4370.8,4370.7,0.4088]
[1756573937053,0.515,4370.8,4370.6,0.231]
[1756573937243,0.3094,4370.7,4370.6,0.6398]
[1756573937443,0.515,4370.7,4370.6,0.6398]
[1756573955766,0.3094,4371.4,4370.7,0.2007]
[1756573956066,0.515,4371.4,4371.3,0.4083]
[1756573956269,0.515,4371.4,4371.3,0.6393]
[1756573957870,0.3094,4371.4,4371.3,0.6393]
[1756573958070,0.501,4371.4,4371.3,0.6393]
[1756573959271,0.3094,4371.4,4371.3,0.6393]
[1756573964478,3.2078,4372.5,4371.4,0.2003]
[1756573964773,0.2823,4372.3,4371.4,0.2003]
[1756573965170,0.22874,4372.2,4371.4,0.2003]
[1756573965668,0.2823,4372.1,4371.4,0.2003]
[1756573966272,0.4739,4372.1,4372.0,0.4056]
[1756573966973,0.4739,4372.1,4371.9,0.231]
[1756573970176,0.1916,4371.8,4371.7,0.231]
[1756573970376,0.4739,4371.8,4371.7,0.231]
[1756573975580,0.4739,4371.8,4371.7,0.6366]
[1756573975975,0.4739,4372.4,4372.3,0.2053]
[1756573976177,0.4739,4372.4,4372.3,0.6366]
[1756573976377,0.2823,4372.4,4372.3,0.6366]
[1756573977175,0.4739,4372.4,4372.3,0.6366]
[1756573978180,0.2823,4373.6,4372.4,0.2003]
[1756573978374,0.2823,4373.6,4372.6,0.2003]
[1756573978375,0.2823,4373.5,4372.6,0.2003]
[1756573978579,0.51098,4373.5,4372.6,0.2003]
[1756573978884,0.51097,4373.5,4372.6,0.2003]
[1756573979085,0.2823,4373.5,4372.6,0.2003]
[1756573980085,0.4739,4372.7,4372.6,0.4056]
[1756573980585,0.4739,4372.7,4372.6,0.4363]
[1756573980981,0.4739,4372.7,4372.6,0.6366]
[1756573981284,0.4739,4372.6,4372.2,0.2003]
[1756573981586,0.4739,4372.6,4372.3,0.231]
[1756573981783,0.4739,4372.6,4372.3,0.4313]
[1756573981974,0.1916,4372.4,4372.3,0.4313]
[1756573982179,0.4739,4372.4,4372.3,0.6366]
[1756573983379,0.4739,4372.4,4372.3,0.4056]
[1756573983582,0.1916,4372.1,4372.0,3.2078]
[1756573983782,0.4739,4372.1,4372.0,3.4388]
[1756573984384,0.4739,4372.1,4372.0,3.6391]
[1756573984682,0.4739,4372.1,4372.0,3.8444]
[1756573985387,0.4739,4372.1,4372.0,3.6134]
[1756573985580,0.4739,4372.1,4372.0,3.8444]
[1756573985977,0.2823,4372.0,4371.5,1.63980318]
[1756573986182,0.168,4373.3,4371.3,1.63980318]
[1756573986183,0.1916,4371.4,4371.3,1.63980318]
[1756573986380,0.4739,4371.4,4371.3,0.6366]
[1756573986584,3.2078,4372.5,4371.4,0.2003]
[1756573986886,0.22873001,4372.4,4371.5,0.2003]
[1756573987086,0.2823,4372.3,4371.5,0.2003]
[1756573988891,0.1916,4371.6,4371.5,0.4056]
[1756573989387,0.4854,4371.6,4371.5,0.4056]
[1756573989994,0.4854,4371.6,4371.5,0.6366]
[1756573990692,0.2938,4371.6,4371.5,0.6366]
[1756573991489,0.4823,4371.6,4371.5,0.6366]
[1756573998993,3.2078,4372.3,4371.6,0.2012]
[1756573999293,0.4823,4372.2,4372.1,0.3965]
[1756573999488,0.4823,4372.2,4372.1,0.6275]
[1756574001795,0.4823,4372.2,4372.1,0.231]
[1756574002393,0.4823,4372.2,4372.1,0.6274]
[1756574002696,0.4823,4372.2,4372.1,0.4263]
[1756574003793,0.4823,4372.2,4372.1,0.6274]
[1756574005197,0.2938,4372.2,4372.1,0.6274]
[1756574005500,0.2938,4372.7,4372.2,0.2011]
[1756574006301,0.2938,4372.7,4372.1,0.231]
[1756574006302,0.4823,4372.4,4372.3,0.3964]
[1756574007596,0.4823,4372.7,4372.6,0.3964]
[1756574007797,0.4823,4372.7,4372.6,0.6274]
[1756574013610,0.4823,4372.7,4372.6,0.4263]
[1756574014115,0.2938,4372.6,4372.5,3.2078]
[1756574014416,0.4823,4372.6,4372.5,3.8352]
[1756574014708,0.4823,4372.6,4372.5,3.2078]
[1756574014910,0.4823,4372.6,4372.5,0.231]
[1756574015708,0.4823,4372.6,4372.5,0.6274]
[1756574017110,0.1885,4372.6,4372.1,1.84090318]
[1756574017311,0.2039,4372.3,4372.2,0.231]
[1756574017516,0.5025,4372.3,4372.2,0.6399]
[1756574020424,0.2986,4372.3,4372.2,0.6399]
[1756574020613,0.2986,4373.3,4372.2,0.4381]
[1756574020914,0.2986,4373.2,4372.3,0.2018]
[1756574021114,0.52729,4373.2,4372.3,0.2018]
[1756574021310,0.22869,4373.1,4372.3,0.2018]
[1756574021516,0.2986,4373.0,4372.3,0.2018]
[1756574024717,0.2039,4372.4,4372.3,0.4089]
[1756574024925,0.5025,4372.4,4372.3,0.4089]
[1756574026922,0.5025,4372.4,4372.1,1.63980318]
[1756574027124,0.5025,4372.3,4372.2,0.231]
[1756574027326,0.5025,4372.3,4372.2,0.6399]
[1756574029821,0.2039,4372.3,4372.2,0.231]
[1756574030022,0.5025,4372.3,4372.2,0.231]
[1756574030329,0.5025,4372.3,4372.2,0.6399]
[1756574032426,0.5025,4372.3,4372.2,2.27970318]
[1756574034231,0.5025,4372.3,4372.2,0.6399]
[1756574034628,0.2986,4373.3,4372.3,0.2018]
[1756574034834,0.2986,4373.3,4372.2,0.4381]
[1756574034835,0.2986,4373.2,4372.5,0.2018]
[1756574035032,0.2039,4372.7,4372.6,0.4381]
[1756574035334,0.5025,4372.7,4372.6,0.4381]
[1756574035733,0.5025,4372.7,4372.6,0.6399]
[1756574047142,0.5025,4372.7,4372.6,0.4089]
[1756574047537,0.5025,4372.7,4372.6,0.6399]
[1756574052236,0.281,4374.6,4374.2,0.1934]
[1756574052442,0.4802,4374.6,4374.5,3.6023]
[1756574052639,0.4802,4374.6,4374.5,5.24122671]
[1756574052834,0.1992,4374.6,4374.4,1.63892671]
[1756574053036,0.1992,4374.2,4373.9,1.63892671]
[1756574053241,0.1992,4374.1,4374.0,0.232]
[1756574053441,0.4802,4374.1,4374.0,0.232]
[1756574054240,0.4802,4373.6,4373.4,1.63892671]
[1756574054444,0.232,4375.0,4372.9,0.2011]
[1756574054445,0.4802,4373.2,4372.9,0.2011]
[1756574054649,0.4802,4373.2,4373.0,0.232]
[1756574054834,0.1992,4373.2,4373.0,0.4331]
[1756574055041,0.4802,4373.1,4373.0,0.6265]
[1756574056041,0.4802,4373.1,4373.0,0.3945]
[1756574056242,0.4802,4373.1,4373.0,0.6265]
[1756574057341,0.4802,4373.1,4372.7,3.2078]
[1756574057551,0.4802,4372.8,4372.7,3.6023]
[1756574057747,0.4802,4372.8,4372.7,3.8343]
[1756574058948,0.281,4373.9,4372.8,0.2011]
[1756574059144,0.1992,4373.1,4373.0,0.3945]
[1756574059345,0.4802,4373.1,4373.0,0.3945]
[1756574068252,0.4802,4373.1,4373.0,0.6265]
[1756574068943,0.4802,4372.8,4372.7,4.84672671]
[1756574069142,0.4802,4372.8,4372.7,3.4398]
[1756574069347,0.4802,4372.8,4372.7,3.8343]
[1756574072354,0.4802,4372.8,4372.7,5.47322671]
[1756574074757,0.4802,4372.8,4372.7,3.8343]
[1756574075259,0.4802,4372.8,4372.7,3.2078]
[1756574075556,0.4802,4372.8,4372.7,3.4398]
[1756574075956,0.4802,4372.8,4372.7,3.8343]
[1756574076355,0.4802,4372.8,4372.7,3.4398]
[1756574077258,0.4802,4372.8,4372.7,0.232]
[1756574080062,0.4802,4372.8,4372.3,1.63892671]
[1756574080361,0.4802,4372.8,4372.4,0.232]
[1756574080556,0.2964,4372.7,4372.3,1.83992671]
[1756574080757,0.2061,4372.3,4372.2,4.84672671]
[1756574080962,0.5025,4372.3,4372.2,5.27972671]
[1756574081265,0.5025,4372.3,4372.2,5.25392671]
[1756574081465,0.5025,4372.3,4372.2,5.48592671]
[1756574082466,0.5025,4372.3,4372.2,5.25392671]
[1756574082666,0.5025,4372.3,4372.2,5.48592671]
[1756574084266,0.5025,4372.3,4372.2,3.847]
[1756574087367,0.2964,4373.2,4372.2,3.646]
[1756574087566,0.2964,4373.1,4372.4,0.201]
[1756574087767,0.5025,4372.6,4372.5,0.6392]
[1756574091767,0.2964,4373.2,4372.6,0.201]
[1756574091975,0.2964,4373.2,4372.2,4.8455044]
[1756574091976,0.5025,4372.8,4372.7,0.6392]
[1756574094668,0.5025,4373.2,4373.1,0.4072]
[1756574094877,0.5025,4373.2,4373.1,0.6392]
[1756574099076,0.5025,4373.2,4373.1,0.232]
[1756574100381,0.5025,4373.2,4372.4,1.6377044]
[1756574100570,0.5025,4372.6,4372.5,0.6392]
[1756574100776,0.2964,4372.6,4372.5,0.6392]
[1756574101177,0.2964,4373.2,4372.5,0.4382]
[1756574101377,0.2964,4373.2,4372.6,0.201]
[1756574101977,0.5025,4372.7,4372.6,0.4072]
[1756574102282,0.5025,4372.7,4372.6,0.6392]
[1756574103585,0.5025,4372.7,4372.6,0.6382]
[1756574104684,0.5025,4372.7,4372.6,0.4072]
[1756574104984,0.5025,4372.7,4372.6,0.6382]
[1756574105583,0.5025,4372.7,4372.6,0.4372]
[1756574106588,0.5025,4372.7,4372.6,0.6382]
[1756574110985,0.5025,4372.7,4372.5,1.6377044]
[1756574111182,0.1875,4372.3,4372.0,1.6377044]
[1756574111485,0.4918,4372.1,4372.0,0.3958]
[1756574113275,3.2078,4372.2,4372.0,0.195]
[1756574113481,0.3043,4372.9,4372.1,3.4028]
[1756574113778,3.2078,4373.7,4372.8,0.195]
[1756574113983,0.3043,4373.5,4373.0,0.2008]
[1756574114882,0.3043,4373.5,4372.9,0.231]
[1756574115084,0.4918,4373.5,4373.4,0.3958]
[1756574116680,3.2078,4373.7,4373.4,0.3958]
[1756574116882,0.4918,4373.6,4373.5,0.3958]
[1756574124994,0.1875,4373.1,4373.0,0.1999]
[1756574125195,0.4918,4373.1,4373.0,0.4309]
[1756574125397,0.4918,4373.1,4373.0,0.6259]
[1756574126096,0.3043,4373.1,4373.0,0.6259]
[1756574126294,3.2078,4373.7,4373.1,0.1999]
[1756574126494,3.2078,4373.7,4373.0,0.426]
[1756574126495,0.4918,4373.6,4373.5,0.195]
[1756574127495,0.1875,4373.6,4373.0,0.4309]
[1756574127694,0.4918,4373.1,4373.0,0.6259]
[1756574128586,0.4918,4373.1,4372.7,3.2078]
[1756574128587,0.3043,4372.8,4372.7,3.2078]
[1756574128797,0.4918,4372.8,4372.7,0.231]
[1756574129293,0.1875,4372.3,4372.2,0.195]
[1756574129498,0.4918,4372.3,4372.2,0.426]
[1756574129893,0.4918,4372.3,4372.2,0.6259]
[1756574130498,0.3043,4373.1,4372.3,0.1999]
[1756574130700,0.1875,4372.4,4372.3,0.3949]
[1756574130998,0.4918,4372.4,4372.3,0.3949]
[1756574132188,0.3043,4372.4,4372.3,0.3949]
[1756574132394,0.3043,4372.7,4372.3,0.3949]
[1756574132594,0.3043,4373.1,4372.4,0.1999]
[1756574133800,0.1875,4372.5,4372.4,0.3949]
[1756574134001,0.4918,4372.5,4372.4,0.3949]
[1756574138404,0.4918,4372.5,4372.4,0.195]
[1756574138604,0.4956,4372.2,4371.7,1.6377044]
[1756574138813,0.1921,4371.9,4371.8,0.231]
[1756574139104,0.4956,4371.9,4371.8,0.6324]
[1756574139509,3.2078,4373.4,4371.9,0.2006]
[1756574139710,0.4956,4372.3,4372.2,0.4014]
[1756574140005,0.4956,4372.3,4372.2,0.6324]
[1756574141196,0.3035,4373.3,4372.2,0.4318]
[1756574141401,0.3035,4373.3,4372.3,0.2006]
[1756574141601,0.1921,4372.9,4372.3,0.2006]
[1756574141806,0.4956,4372.4,4372.3,0.4014]
[1756574148311,0.4956,4372.4,4372.3,0.6324]
[1756574148504,0.4956,4372.4,4372.3,0.4318]
[1756574148700,0.102,4374.1,4371.9,1.6377044]
[1756574148701,0.4956,4372.0,4371.9,1.6377044]
[1756574149007,0.3035,4371.4,4371.2,3.2078]
[1756574149206,0.1921,4371.3,4370.8,1.6377044]
[1756574149405,0.4956,4370.8,4370.7,4.8455044]
[1756574149605,0.1921,4370.8,4370.3,1.6377044]